[Event "Live Chess"]
[Site "Chess.com"]
[Date "2010.12.13"]
[Round "-"]
[White "Computer4-IMPOSSIBLE"]
[Black "hipposcottimus"]
[Result "1-0"]
[CurrentPosition "3q3k/p5Qp/3rb3/5p2/1P6/4P3/1B1P1PPP/4K2R b K -"]
[Timezone "UTC"]
[ECO "A20"]
[ECOUrl "https://www.chess.com/openings/English-Opening-Kings-English-Nimzowitsch-Flohr-Variation-3.Nd4"]
[UTCDate "2010.12.13"]
[UTCTime "22:27:13"]
[WhiteElo "2049"]
[BlackElo "1566"]
[TimeControl "600+10"]
[Termination "Computer4-IMPOSSIBLE won by checkmate"]
[StartTime "22:27:13"]
[EndDate "2010.12.13"]
[EndTime "22:32:33"]
[Link "https://www.chess.com/game/live/77016375"]

1. c4 {[%clk 0:10:00]} 1... e5 {[%clk 0:10:00]} 2. Nf3 {[%clk 0:10:00]} 2... e4 {[%clk 0:10:08.1]} 3. Nd4 {[%clk 0:10:00]} 3... d5 {[%clk 0:10:15.1]} 4. cxd5 {[%clk 0:10:00]} 4... Bd6 {[%clk 0:10:24.1]} 5. Nc3 {[%clk 0:10:00]} 5... c6 {[%clk 0:10:32.9]} 6. dxc6 {[%clk 0:10:00]} 6... Nxc6 {[%clk 0:10:39.3]} 7. Nxc6 {[%clk 0:10:00]} 7... bxc6 {[%clk 0:10:49]} 8. Nxe4 {[%clk 0:10:00]} 8... Nf6 {[%clk 0:10:58.3]} 9. Qc2 {[%clk 0:10:00]} 9... O-O {[%clk 0:11:03.2]} 10. Qxc6 {[%clk 0:10:00]} 10... Nxe4 {[%clk 0:11:05.2]} 11. Qxe4 {[%clk 0:10:00]} 11... Rb8 {[%clk 0:11:09.5]} 12. e3 {[%clk 0:10:00]} 12... f5 {[%clk 0:11:18]} 13. Bc4+ {[%clk 0:10:00]} 13... Kh8 {[%clk 0:11:26.3]} 14. Qd4 {[%clk 0:10:00]} 14... Rb4 {[%clk 0:11:27.4]} 15. b3 {[%clk 0:10:00]} 15... Ba6 {[%clk 0:11:33.8]} 16. Bb2 {[%clk 0:10:00]} 16... Rf7 {[%clk 0:11:38.1]} 17. a3 {[%clk 0:10:00]} 17... Bxc4 {[%clk 0:11:41.5]} 18. axb4 {[%clk 0:10:00]} 18... Bxb3 {[%clk 0:11:46.7]} 19. Ra3 {[%clk 0:10:00]} 19... Be6 {[%clk 0:11:44.6]} 20. Ra6 {[%clk 0:10:00]} 20... Rd7 {[%clk 0:11:52.7]} 21. Rxd6 {[%clk 0:10:00]} 21... Rxd6 {[%clk 0:12:01.4]} 22. Qxg7# {[%clk 0:10:00]} 1-0

[Event "Live Chess"]
[Site "Chess.com"]
[Date "2010.12.13"]
[Round "-"]
[White "murphytheUKdog"]
[Black "hipposcottimus"]
[Result "0-1"]
[CurrentPosition "8/5P2/7p/p1B3k1/6p1/3P3p/PP4K1/5R2 w - -"]
[Timezone "UTC"]
[ECO "A02"]
[ECOUrl "https://www.chess.com/openings/Birds-Opening-Froms-Gambit"]
[UTCDate "2010.12.13"]
[UTCTime "22:26:53"]
[WhiteElo "1492"]
[BlackElo "1680"]
[TimeControl "60"]
[Termination "hipposcottimus won on time"]
[StartTime "22:26:53"]
[EndDate "2010.12.13"]
[EndTime "22:29:03"]
[Link "https://www.chess.com/game/live/77015418"]

1. f4 {[%clk 0:01:00]} 1... e5 {[%clk 0:01:00]} 2. Nf3 {[%clk 0:01:00]} 2... d6 {[%clk 0:00:59.8]} 3. g3 {[%clk 0:00:59.4]} 3... e4 {[%clk 0:00:58.6]} 4. Nd4 {[%clk 0:00:57]} 4... d5 {[%clk 0:00:58.3]} 5. d3 {[%clk 0:00:56.6]} 5... c5 {[%clk 0:00:57.7]} 6. Nb3 {[%clk 0:00:54.5]} 6... e3 {[%clk 0:00:57.1]} 7. Bxe3 {[%clk 0:00:52.3]} 7... d4 {[%clk 0:00:54.9]} 8. Bf2 {[%clk 0:00:51.1]} 8... Nf6 {[%clk 0:00:54.6]} 9. e3 {[%clk 0:00:50.4]} 9... Nc6 {[%clk 0:00:53.8]} 10. exd4 {[%clk 0:00:49.5]} 10... cxd4 {[%clk 0:00:53.5]} 11. c3 {[%clk 0:00:46.5]} 11... Na5 {[%clk 0:00:44.9]} 12. Nxd4 {[%clk 0:00:43.5]} 12... Bg4 {[%clk 0:00:38.4]} 13. Be2 {[%clk 0:00:40.7]} 13... Bc5 {[%clk 0:00:37.3]} 14. Bxg4 {[%clk 0:00:38.9]} 14... Bxd4 {[%clk 0:00:36.8]} 15. cxd4 {[%clk 0:00:36.5]} 15... O-O {[%clk 0:00:31.1]} 16. Bf5 {[%clk 0:00:34.3]} 16... Re8+ {[%clk 0:00:30.7]} 17. Be4 {[%clk 0:00:31.3]} 17... Nd5 {[%clk 0:00:29.1]} 18. O-O {[%clk 0:00:28.3]} 18... Nc6 {[%clk 0:00:28.7]} 19. Bxd5 {[%clk 0:00:26.6]} 19... Qxd5 {[%clk 0:00:28.5]} 20. Nc3 {[%clk 0:00:25.2]} 20... Nxd4 {[%clk 0:00:28.1]} 21. Nxd5 {[%clk 0:00:23.7]} 21... Nf3+ {[%clk 0:00:26]} 22. Qxf3 {[%clk 0:00:21.3]} 22... Red8 {[%clk 0:00:25.8]} 23. Nb4 {[%clk 0:00:19.4]} 23... Rac8 {[%clk 0:00:25.5]} 24. Rac1 {[%clk 0:00:17.7]} 24... a5 {[%clk 0:00:24.4]} 25. Rxc8 {[%clk 0:00:16.3]} 25... Rxc8 {[%clk 0:00:24]} 26. Nc2 {[%clk 0:00:14.3]} 26... Re8 {[%clk 0:00:23.7]} 27. Nd4 {[%clk 0:00:13.2]} 27... Rf8 {[%clk 0:00:23.5]} 28. Nf5 {[%clk 0:00:12.5]} 28... Ra8 {[%clk 0:00:23.2]} 29. Ne7+ {[%clk 0:00:11.8]} 29... Kf8 {[%clk 0:00:19.8]} 30. Qxb7 {[%clk 0:00:11.1]} 30... Re8 {[%clk 0:00:19.1]} 31. Qd7 {[%clk 0:00:10]} 31... Rxe7 {[%clk 0:00:18.1]} 32. Qxe7+ {[%clk 0:00:08.9]} 32... Kxe7 {[%clk 0:00:16.7]} 33. Bc5+ {[%clk 0:00:08.9]} 33... Kf6 {[%clk 0:00:16.4]} 34. Re1 {[%clk 0:00:08.1]} 34... Kf5 {[%clk 0:00:16.1]} 35. g4+ {[%clk 0:00:07.5]} 35... Kg6 {[%clk 0:00:15.5]} 36. Rf1 {[%clk 0:00:05.5]} 36... f5 {[%clk 0:00:13.9]} 37. h4 {[%clk 0:00:05.5]} 37... fxg4 {[%clk 0:00:12.7]} 38. Kg2 {[%clk 0:00:05.5]} 38... Kh5 {[%clk 0:00:12.2]} 39. Kg3 {[%clk 0:00:05.5]} 39... g5 {[%clk 0:00:11.3]} 40. f5 {[%clk 0:00:05.2]} 40... h6 {[%clk 0:00:10.9]} 41. f6 {[%clk 0:00:04.6]} 41... gxh4+ {[%clk 0:00:10.6]} 42. Kg2 {[%clk 0:00:02.5]} 42... Kg5 {[%clk 0:00:10.1]} 43. f7 {[%clk 0:00:01.7]} 43... h3+ {[%clk 0:00:09.9]} 0-1

[Event "Live Chess"]
[Site "Chess.com"]
[Date "2010.12.13"]
[Round "-"]
[White "hipposcottimus"]
[Black "murphytheUKdog"]
[Result "0-1"]
[CurrentPosition "2k5/pp5p/2pnP1p1/1q6/6P1/2Q4P/PP6/K1R5 w - -"]
[Timezone "UTC"]
[ECO "A82"]
[ECOUrl "https://www.chess.com/openings/Dutch-Defense-Staunton-Balogh-Defense"]
[UTCDate "2010.12.13"]
[UTCTime "22:24:27"]
[WhiteElo "1676"]
[BlackElo "1496"]
[TimeControl "60"]
[Termination "murphytheUKdog won on time"]
[StartTime "22:24:27"]
[EndDate "2010.12.13"]
[EndTime "22:26:39"]
[Link "https://www.chess.com/game/live/77014772"]

1. e4 {[%clk 0:01:00]} 1... d6 {[%clk 0:01:00]} 2. d4 {[%clk 0:00:58.2]} 2... f5 {[%clk 0:00:59.3]} 3. Qh5+ {[%clk 0:00:50.8]} 3... g6 {[%clk 0:00:57]} 4. Qe2 {[%clk 0:00:50.6]} 4... e5 {[%clk 0:00:54.7]} 5. exf5 {[%clk 0:00:48.6]} 5... Bxf5 {[%clk 0:00:52.7]} 6. dxe5 {[%clk 0:00:47.4]} 6... d5 {[%clk 0:00:48]} 7. Bf4 {[%clk 0:00:40.2]} 7... Bb4+ {[%clk 0:00:46.4]} 8. c3 {[%clk 0:00:39]} 8... Bc5 {[%clk 0:00:45.6]} 9. Nd2 {[%clk 0:00:38.6]} 9... Nc6 {[%clk 0:00:43.5]} 10. Nb3 {[%clk 0:00:38.1]} 10... Qe7 {[%clk 0:00:41.9]} 11. O-O-O {[%clk 0:00:37.7]} 11... O-O-O {[%clk 0:00:39.7]} 12. Nd4 {[%clk 0:00:32.1]} 12... Bxd4 {[%clk 0:00:38]} 13. cxd4 {[%clk 0:00:31.8]} 13... Nh6 {[%clk 0:00:34.2]} 14. f3 {[%clk 0:00:24.6]} 14... Nf7 {[%clk 0:00:32.2]} 15. g4 {[%clk 0:00:23.7]} 15... Be6 {[%clk 0:00:30.1]} 16. Kb1 {[%clk 0:00:22.2]} 16... Bd7 {[%clk 0:00:29.3]} 17. Ka1 {[%clk 0:00:21.4]} 17... Na5 {[%clk 0:00:28.2]} 18. Rc1 {[%clk 0:00:20.7]} 18... Nc4 {[%clk 0:00:27.5]} 19. Qc2 {[%clk 0:00:19.6]} 19... Bb5 {[%clk 0:00:26]} 20. Bxc4 {[%clk 0:00:18]} 20... dxc4 {[%clk 0:00:24.7]} 21. Be3 {[%clk 0:00:14.5]} 21... Qb4 {[%clk 0:00:21.6]} 22. Bd2 {[%clk 0:00:12.3]} 22... c3 {[%clk 0:00:19.5]} 23. Bxc3 {[%clk 0:00:11.2]} 23... Qc4 {[%clk 0:00:18.5]} 24. d5 {[%clk 0:00:09.9]} 24... Qxd5 {[%clk 0:00:15.9]} 25. Ne2 {[%clk 0:00:09.5]} 25... Qxf3 {[%clk 0:00:15]} 26. Nd4 {[%clk 0:00:08.3]} 26... Qd5 {[%clk 0:00:13.7]} 27. Nxb5 {[%clk 0:00:07.5]} 27... Qxb5 {[%clk 0:00:12.4]} 28. Rhd1 {[%clk 0:00:05.8]} 28... Rxd1 {[%clk 0:00:10.6]} 29. Rxd1 {[%clk 0:00:05.6]} 29... Rd8 {[%clk 0:00:09.4]} 30. Rc1 {[%clk 0:00:05.3]} 30... Rd3 {[%clk 0:00:07.5]} 31. h3 {[%clk 0:00:04.4]} 31... Rxc3 {[%clk 0:00:06.8]} 32. Qxc3 {[%clk 0:00:02.8]} 32... c6 {[%clk 0:00:06.3]} 33. e6 {[%clk 0:00:00.3]} 33... Nd6 {[%clk 0:00:04.6]} 0-1

[Event "Live Chess"]
[Site "Chess.com"]
[Date "2010.12.13"]
[Round "-"]
[White "murphytheUKdog"]
[Black "hipposcottimus"]
[Result "0-1"]
[CurrentPosition "2r3k1/p5pp/5p2/4p3/6P1/2bPB3/bqK2PBP/3R3R w - -"]
[Timezone "UTC"]
[ECO "A00"]
[ECOUrl "https://www.chess.com/openings/Kings-Fianchetto-Opening-1...e5-2.Bg2-d5-3.d3"]
[UTCDate "2010.12.13"]
[UTCTime "22:22:32"]
[WhiteElo "1483"]
[BlackElo "1687"]
[TimeControl "60"]
[Termination "hipposcottimus won by checkmate"]
[StartTime "22:22:32"]
[EndDate "2010.12.13"]
[EndTime "22:24:18"]
[Link "https://www.chess.com/game/live/77014231"]

1. g3 {[%clk 0:01:00]} 1... e5 {[%clk 0:01:00]} 2. Bg2 {[%clk 0:01:00]} 2... d5 {[%clk 0:00:59.7]} 3. d3 {[%clk 0:00:59.5]} 3... c5 {[%clk 0:00:58.4]} 4. e4 {[%clk 0:00:59.5]} 4... Nc6 {[%clk 0:00:58]} 5. exd5 {[%clk 0:00:58.4]} 5... Nb4 {[%clk 0:00:57.8]} 6. c4 {[%clk 0:00:55]} 6... b5 {[%clk 0:00:56.2]} 7. cxb5 {[%clk 0:00:53.4]} 7... Nxd5 {[%clk 0:00:54.6]} 8. b6 {[%clk 0:00:51.4]} 8... Nxb6 {[%clk 0:00:50]} 9. Nf3 {[%clk 0:00:50.5]} 9... Bd6 {[%clk 0:00:48.7]} 10. Bg5 {[%clk 0:00:48]} 10... f6 {[%clk 0:00:46.9]} 11. Be3 {[%clk 0:00:46.8]} 11... Ne7 {[%clk 0:00:46.5]} 12. Nc3 {[%clk 0:00:45]} 12... Nf5 {[%clk 0:00:46.1]} 13. Qb3 {[%clk 0:00:37.5]} 13... Qe7 {[%clk 0:00:36.9]} 14. O-O-O {[%clk 0:00:36.3]} 14... Be6 {[%clk 0:00:35.4]} 15. Qc2 {[%clk 0:00:34.1]} 15... O-O {[%clk 0:00:35]} 16. g4 {[%clk 0:00:32.5]} 16... Nd4 {[%clk 0:00:33.5]} 17. Nxd4 {[%clk 0:00:31]} 17... cxd4 {[%clk 0:00:33.2]} 18. Ne4 {[%clk 0:00:26.9]} 18... Rac8 {[%clk 0:00:31.9]} 19. Nc3 {[%clk 0:00:24.1]} 19... dxc3 {[%clk 0:00:30.5]} 20. bxc3 {[%clk 0:00:23.4]} 20... Bb4 {[%clk 0:00:29.8]} 21. Bxb6 {[%clk 0:00:18.7]} 21... Rxc3 {[%clk 0:00:28.6]} 22. Qxc3 {[%clk 0:00:16.7]} 22... Bxc3 {[%clk 0:00:28.3]} 23. Be3 {[%clk 0:00:14.4]} 23... Bxa2 {[%clk 0:00:26.1]} 24. Kc2 {[%clk 0:00:13.1]} 24... Rc8 {[%clk 0:00:25.3]} 25. Kc1 {[%clk 0:00:07.6]} 25... Qa3+ {[%clk 0:00:24.6]} 26. Kc2 {[%clk 0:00:03.4]} 26... Qb2# {[%clk 0:00:24.3]} 0-1

[Event "Live Chess"]
[Site "Chess.com"]
[Date "2010.12.13"]
[Round "-"]
[White "hipposcottimus"]
[Black "murphytheUKdog"]
[Result "0-1"]
[CurrentPosition "2k4r/4nB1p/p5p1/2p5/8/2P2R2/P4PPP/R1Br2K1 w - -"]
[Timezone "UTC"]
[ECO "C00"]
[ECOUrl "https://www.chess.com/openings/Pirc-Defense-Small-Center-Defense"]
[UTCDate "2010.12.13"]
[UTCTime "22:21:26"]
[WhiteElo "1683"]
[BlackElo "1487"]
[TimeControl "60"]
[Termination "murphytheUKdog won by checkmate"]
[StartTime "22:21:26"]
[EndDate "2010.12.13"]
[EndTime "22:22:09"]
[Link "https://www.chess.com/game/live/77013916"]

1. e4 {[%clk 0:01:00]} 1... e6 {[%clk 0:01:00]} 2. d4 {[%clk 0:00:58.6]} 2... d6 {[%clk 0:01:00]} 3. Nf3 {[%clk 0:00:55.8]} 3... Ne7 {[%clk 0:01:00]} 4. c4 {[%clk 0:00:54.5]} 4... Nd7 {[%clk 0:01:00]} 5. d5 {[%clk 0:00:53.9]} 5... g6 {[%clk 0:01:00]} 6. dxe6 {[%clk 0:00:52.7]} 6... Bg7 {[%clk 0:01:00]} 7. exd7+ {[%clk 0:00:51.9]} 7... Qxd7 {[%clk 0:00:59.2]} 8. Nc3 {[%clk 0:00:51.4]} 8... Bxc3+ {[%clk 0:00:58]} 9. bxc3 {[%clk 0:00:51.2]} 9... c5 {[%clk 0:00:57.1]} 10. Bd3 {[%clk 0:00:50.7]} 10... a6 {[%clk 0:00:55.4]} 11. O-O {[%clk 0:00:50.4]} 11... b5 {[%clk 0:00:54.8]} 12. e5 {[%clk 0:00:48.3]} 12... bxc4 {[%clk 0:00:52.9]} 13. exd6 {[%clk 0:00:46.3]} 13... Qxd6 {[%clk 0:00:52.1]} 14. Bxc4 {[%clk 0:00:45]} 14... Qxd1 {[%clk 0:00:51.3]} 15. Rxd1 {[%clk 0:00:44.7]} 15... Bg4 {[%clk 0:00:49.7]} 16. Rd3 {[%clk 0:00:42.4]} 16... Bxf3 {[%clk 0:00:48.8]} 17. Rxf3 {[%clk 0:00:42.1]} 17... O-O-O {[%clk 0:00:47.9]} 18. Bxf7 {[%clk 0:00:41.5]} 18... Rd1# {[%clk 0:00:45.2]} 0-1

[Event "Live Chess"]
[Site "Chess.com"]
[Date "2010.12.13"]
[Round "-"]
[White "murphytheUKdog"]
[Black "hipposcottimus"]
[Result "0-1"]
[CurrentPosition "1K6/1p6/q1n3k1/5b2/8/8/8/8 w - -"]
[Timezone "UTC"]
[ECO "A00"]
[ECOUrl "https://www.chess.com/openings/Kings-Fianchetto-Opening-1...e5-2.Bg2-d5"]
[UTCDate "2010.12.13"]
[UTCTime "22:19:03"]
[WhiteElo "1474"]
[BlackElo "1694"]
[TimeControl "60"]
[Termination "hipposcottimus won on time"]
[StartTime "22:19:03"]
[EndDate "2010.12.13"]
[EndTime "22:21:15"]
[Link "https://www.chess.com/game/live/77013201"]

1. g3 {[%clk 0:01:00]} 1... e5 {[%clk 0:01:00]} 2. Bg2 {[%clk 0:00:58.8]} 2... d5 {[%clk 0:00:59.8]} 3. e4 {[%clk 0:00:56.3]} 3... c6 {[%clk 0:00:59.5]} 4. exd5 {[%clk 0:00:54.6]} 4... cxd5 {[%clk 0:00:59.2]} 5. d3 {[%clk 0:00:53]} 5... f5 {[%clk 0:00:58.7]} 6. c4 {[%clk 0:00:53]} 6... e4 {[%clk 0:00:56.5]} 7. cxd5 {[%clk 0:00:51.6]} 7... Qxd5 {[%clk 0:00:55.7]} 8. Nc3 {[%clk 0:00:47.1]} 8... Bb4 {[%clk 0:00:51.8]} 9. Bd2 {[%clk 0:00:45.4]} 9... Bxc3 {[%clk 0:00:50.8]} 10. Bxc3 {[%clk 0:00:43.8]} 10... Nc6 {[%clk 0:00:46.8]} 11. Bxg7 {[%clk 0:00:42.4]} 11... Qxd3 {[%clk 0:00:43.6]} 12. Qxd3 {[%clk 0:00:40.5]} 12... exd3 {[%clk 0:00:42.8]} 13. Bxh8 {[%clk 0:00:39.7]} 13... Bd7 {[%clk 0:00:40.6]} 14. Bxc6 {[%clk 0:00:37.3]} 14... Bxc6 {[%clk 0:00:38.8]} 15. O-O-O {[%clk 0:00:36.8]} 15... O-O-O {[%clk 0:00:37.6]} 16. f3 {[%clk 0:00:32.5]} 16... Kb8 {[%clk 0:00:37.1]} 17. Nh3 {[%clk 0:00:29.9]} 17... Rc8 {[%clk 0:00:36.8]} 18. g4 {[%clk 0:00:28.4]} 18... Bxf3+ {[%clk 0:00:36]} 19. Kd2 {[%clk 0:00:23]} 19... Bxh1 {[%clk 0:00:35.6]} 20. Kxd3 {[%clk 0:00:21.5]} 20... fxg4 {[%clk 0:00:35.1]} 21. Nf4 {[%clk 0:00:19.7]} 21... Bf3 {[%clk 0:00:33.6]} 22. Rd2 {[%clk 0:00:17.4]} 22... Rd8+ {[%clk 0:00:33.2]} 23. Kc2 {[%clk 0:00:15.9]} 23... Ne7 {[%clk 0:00:32.8]} 24. Rxd8+ {[%clk 0:00:14.3]} 24... Kc7 {[%clk 0:00:32.6]} 25. Be5+ {[%clk 0:00:13.3]} 25... Kxd8 {[%clk 0:00:31.1]} 26. Ne6+ {[%clk 0:00:12.4]} 26... Kd7 {[%clk 0:00:29.7]} 27. h3 {[%clk 0:00:11.5]} 27... Kxe6 {[%clk 0:00:29]} 28. Bg7 {[%clk 0:00:10.4]} 28... Kf7 {[%clk 0:00:27.8]} 29. hxg4 {[%clk 0:00:08.7]} 29... Bxg4 {[%clk 0:00:26.7]} 30. Bh6 {[%clk 0:00:07.2]} 30... Bf5+ {[%clk 0:00:25.7]} 31. Kc3 {[%clk 0:00:05.6]} 31... Kg6 {[%clk 0:00:24.6]} 32. b4 {[%clk 0:00:05.6]} 32... Kxh6 {[%clk 0:00:23.1]} 33. a4 {[%clk 0:00:05.6]} 33... Kg6 {[%clk 0:00:22.1]} 34. Kc4 {[%clk 0:00:05.6]} 34... h5 {[%clk 0:00:21.6]} 35. Kc5 {[%clk 0:00:05.6]} 35... h4 {[%clk 0:00:20.3]} 36. b5 {[%clk 0:00:05.6]} 36... h3 {[%clk 0:00:19.7]} 37. a5 {[%clk 0:00:05.6]} 37... h2 {[%clk 0:00:16.7]} 38. b6 {[%clk 0:00:05.6]} 38... axb6+ {[%clk 0:00:15.1]} 39. Kxb6 {[%clk 0:00:04.4]} 39... h1=Q {[%clk 0:00:13.7]} 40. a6 {[%clk 0:00:02.7]} 40... Qc6+ {[%clk 0:00:13.1]} 41. Ka7 {[%clk 0:00:00.9]} 41... Qxa6+ {[%clk 0:00:10.1]} 42. Kb8 {[%clk 0:00:00.3]} 42... Nc6+ {[%clk 0:00:09.4]} 0-1

[Event "Live Chess"]
[Site "Chess.com"]
[Date "2010.12.13"]
[Round "-"]
[White "hipposcottimus"]
[Black "ChessNut71"]
[Result "1-0"]
[CurrentPosition "5r2/ppp5/3kbP1p/4P3/8/1BB5/PPP3P1/R4RK1 b - -"]
[Timezone "UTC"]
[ECO "C41"]
[ECOUrl "https://www.chess.com/openings/Philidor-Defense-Nimzowitsch-Variation-4.dxe5"]
[UTCDate "2010.12.13"]
[UTCTime "22:17:15"]
[WhiteElo "1690"]
[BlackElo "1532"]
[TimeControl "60"]
[Termination "hipposcottimus won by resignation"]
[StartTime "22:17:15"]
[EndDate "2010.12.13"]
[EndTime "22:18:33"]
[Link "https://www.chess.com/game/live/77012662"]

1. e4 {[%clk 0:01:00]} 1... e5 {[%clk 0:01:00]} 2. Nf3 {[%clk 0:00:59.5]} 2... d6 {[%clk 0:01:00]} 3. d4 {[%clk 0:00:59.1]} 3... Nf6 {[%clk 0:01:00]} 4. dxe5 {[%clk 0:00:58.2]} 4... dxe5 {[%clk 0:00:59.5]} 5. Qxd8+ {[%clk 0:00:56.8]} 5... Kxd8 {[%clk 0:00:56.9]} 6. Nxe5 {[%clk 0:00:56.5]} 6... Ke7 {[%clk 0:00:56.9]} 7. Bd3 {[%clk 0:00:53.8]} 7... Nc6 {[%clk 0:00:56.9]} 8. Bf4 {[%clk 0:00:52.1]} 8... Nxe5 {[%clk 0:00:55.2]} 9. Bxe5 {[%clk 0:00:51.8]} 9... Be6 {[%clk 0:00:52.4]} 10. O-O {[%clk 0:00:50.4]} 10... h6 {[%clk 0:00:50.6]} 11. f4 {[%clk 0:00:49.8]} 11... Nh7 {[%clk 0:00:49.3]} 12. f5 {[%clk 0:00:49]} 12... Bd7 {[%clk 0:00:45.9]} 13. Nc3 {[%clk 0:00:42]} 13... Nf6 {[%clk 0:00:44.4]} 14. Nd5+ {[%clk 0:00:38.6]} 14... Kd8 {[%clk 0:00:41.8]} 15. Nxf6 {[%clk 0:00:37.4]} 15... gxf6 {[%clk 0:00:39.4]} 16. Bxf6+ {[%clk 0:00:36.6]} 16... Ke8 {[%clk 0:00:39.4]} 17. Bxh8 {[%clk 0:00:36.2]} 17... Bd6 {[%clk 0:00:37.8]} 18. Bc3 {[%clk 0:00:35.9]} 18... Bxh2+ {[%clk 0:00:34.1]} 19. Kxh2 {[%clk 0:00:34.5]} 19... Ke7 {[%clk 0:00:34.1]} 20. Kg1 {[%clk 0:00:34.3]} 20... Rg8 {[%clk 0:00:31.9]} 21. f6+ {[%clk 0:00:34]} 21... Ke6 {[%clk 0:00:30.3]} 22. Bc4+ {[%clk 0:00:33.7]} 22... Kd6 {[%clk 0:00:27.6]} 23. Bxf7 {[%clk 0:00:32.9]} 23... Rf8 {[%clk 0:00:25.9]} 24. Bb3 {[%clk 0:00:31.2]} 24... Be6 {[%clk 0:00:23.5]} 25. e5+ {[%clk 0:00:30.9]} 1-0

[Event "Live Chess"]
[Site "Chess.com"]
[Date "2010.12.13"]
[Round "-"]
[White "RealQueen"]
[Black "hipposcottimus"]
[Result "0-1"]
[CurrentPosition "4r1k1/5ppp/4q3/8/3P4/PPn1P1Q1/5PPP/4R1K1 w - -"]
[Timezone "UTC"]
[ECO "A20"]
[ECOUrl "https://www.chess.com/openings/English-Opening-Kings-English-Variation-2.e3-Nf6"]
[UTCDate "2010.12.13"]
[UTCTime "22:15:12"]
[WhiteElo "1361"]
[BlackElo "1685"]
[TimeControl "60"]
[Termination "hipposcottimus won on time"]
[StartTime "22:15:12"]
[EndDate "2010.12.13"]
[EndTime "22:16:58"]
[Link "https://www.chess.com/game/live/77012076"]

1. c4 {[%clk 0:01:00]} 1... e5 {[%clk 0:01:00]} 2. e3 {[%clk 0:00:59]} 2... Nf6 {[%clk 0:00:58.2]} 3. a3 {[%clk 0:00:58.5]} 3... e4 {[%clk 0:00:57.4]} 4. Nc3 {[%clk 0:00:57.7]} 4... d5 {[%clk 0:00:57.1]} 5. cxd5 {[%clk 0:00:54.5]} 5... Nxd5 {[%clk 0:00:56.8]} 6. Nxe4 {[%clk 0:00:52.8]} 6... Bd6 {[%clk 0:00:49.2]} 7. Nxd6+ {[%clk 0:00:49.3]} 7... Qxd6 {[%clk 0:00:48.9]} 8. Nf3 {[%clk 0:00:48.4]} 8... O-O {[%clk 0:00:47.7]} 9. b3 {[%clk 0:00:46.3]} 9... Bg4 {[%clk 0:00:47.3]} 10. Bb2 {[%clk 0:00:43.9]} 10... Nc6 {[%clk 0:00:43.4]} 11. Be2 {[%clk 0:00:38.6]} 11... Rfe8 {[%clk 0:00:42.3]} 12. O-O {[%clk 0:00:36.5]} 12... Ne5 {[%clk 0:00:39.2]} 13. Nxe5 {[%clk 0:00:32.5]} 13... Bxe2 {[%clk 0:00:38.3]} 14. Qe1 {[%clk 0:00:29.5]} 14... Bxf1 {[%clk 0:00:35.8]} 15. Qxf1 {[%clk 0:00:21.8]} 15... Rxe5 {[%clk 0:00:34.6]} 16. Bxe5 {[%clk 0:00:19.6]} 16... Qxe5 {[%clk 0:00:34.3]} 17. d4 {[%clk 0:00:18.6]} 17... Qe6 {[%clk 0:00:31.6]} 18. Qb5 {[%clk 0:00:17.1]} 18... Nf6 {[%clk 0:00:30.2]} 19. Qxb7 {[%clk 0:00:15.5]} 19... Re8 {[%clk 0:00:29.9]} 20. Qxc7 {[%clk 0:00:13.3]} 20... Re7 {[%clk 0:00:28.3]} 21. Qb8+ {[%clk 0:00:10]} 21... Re8 {[%clk 0:00:27.6]} 22. Qxa7 {[%clk 0:00:08.2]} 22... Re7 {[%clk 0:00:27.3]} 23. Qb8+ {[%clk 0:00:07.4]} 23... Re8 {[%clk 0:00:26.7]} 24. Qg3 {[%clk 0:00:06.1]} 24... Nd5 {[%clk 0:00:26.2]} 25. Re1 {[%clk 0:00:03.4]} 25... Nc3 {[%clk 0:00:23.7]} 0-1

[Event "Live Chess"]
[Site "Chess.com"]
[Date "2010.12.13"]
[Round "-"]
[White "hipposcottimus"]
[Black "VA-86"]
[Result "1-0"]
[CurrentPosition "4r2k/ppp3p1/7n/2B1p1n1/6bP/1BN3Q1/PPP3P1/R3R2K b - h3"]
[Timezone "UTC"]
[ECO "A06"]
[ECOUrl "https://www.chess.com/openings/Reti-Opening-Tennison-Gambit"]
[UTCDate "2010.12.13"]
[UTCTime "22:12:51"]
[WhiteElo "1683"]
[BlackElo "2169"]
[TimeControl "60"]
[Termination "hipposcottimus won on time"]
[StartTime "22:12:51"]
[EndDate "2010.12.13"]
[EndTime "22:14:50"]
[Link "https://www.chess.com/game/live/77011419"]

1. e4 {[%clk 0:01:00]} 1... d5 {[%clk 0:01:00]} 2. Nf3 {[%clk 0:00:59.7]} 2... dxe4 {[%clk 0:00:59.2]} 3. Ng5 {[%clk 0:00:59.4]} 3... f5 {[%clk 0:00:57.2]} 4. f3 {[%clk 0:00:57.8]} 4... Nf6 {[%clk 0:00:55]} 5. fxe4 {[%clk 0:00:56.6]} 5... fxe4 {[%clk 0:00:55]} 6. d3 {[%clk 0:00:55.2]} 6... Bg4 {[%clk 0:00:54.6]} 7. Qd2 {[%clk 0:00:50.9]} 7... exd3 {[%clk 0:00:52.6]} 8. Bxd3 {[%clk 0:00:48.4]} 8... e5 {[%clk 0:00:50.3]} 9. O-O {[%clk 0:00:46.6]} 9... Nc6 {[%clk 0:00:48.4]} 10. Re1 {[%clk 0:00:44.4]} 10... Bd6 {[%clk 0:00:45.9]} 11. Nc3 {[%clk 0:00:42.7]} 11... O-O {[%clk 0:00:43.7]} 12. Bc4+ {[%clk 0:00:36.6]} 12... Kh8 {[%clk 0:00:42]} 13. Nf7+ {[%clk 0:00:34.5]} 13... Rxf7 {[%clk 0:00:38.8]} 14. Bxf7 {[%clk 0:00:34.2]} 14... Qe7 {[%clk 0:00:33.8]} 15. Bb3 {[%clk 0:00:33.8]} 15... Rd8 {[%clk 0:00:32.3]} 16. Qg5 {[%clk 0:00:32.8]} 16... Bc5+ {[%clk 0:00:30.8]} 17. Kh1 {[%clk 0:00:31]} 17... h6 {[%clk 0:00:25.4]} 18. Qh4 {[%clk 0:00:26.4]} 18... Nd4 {[%clk 0:00:21.7]} 19. Bxh6 {[%clk 0:00:24.9]} 19... Ng8 {[%clk 0:00:14.3]} 20. Bg5+ {[%clk 0:00:23.4]} 20... Nh6 {[%clk 0:00:08]} 21. Bxe7 {[%clk 0:00:20.9]} 21... Re8 {[%clk 0:00:05.8]} 22. Bxc5 {[%clk 0:00:19]} 22... Nf3 {[%clk 0:00:03.8]} 23. Qg3 {[%clk 0:00:14.2]} 23... Ng5 {[%clk 0:00:00.1]} 24. h4 {[%clk 0:00:12.9]} 1-0